[Event "Titled Tuesday Blitz May 03 Late 2022"]
[White "Jacobson, Aaron"]
[Black "Gutierrez Olivares, Daniel"]
[WhiteFideId "2089912"]
[BlackFideId "2264005"]
[WhiteElo "2265"]
[BlackElo "2317"]
[Result "1-0"]
[Round "04"]
[TimeControl "180+1"]
[Date "2022.05.03"]
[WhiteClock "0:02:13"]
[BlackClock "0:01:08"]

1. e4 {[%clk 0:03:00]}  e6 {[%clk 0:02:52]} 2. d4 {[%clk 0:03:00]}  d5 {[%clk 0:02:51]} 3. Nd2 {[%clk 0:03:01]}  Nf6 {[%clk 0:02:51]} 4. e5 {[%clk 0:03:00]}  Nfd7 {[%clk 0:02:51]} 5. f4 {[%clk 0:03:01]}  c5 {[%clk 0:02:50]} 6. Ngf3 {[%clk 0:03:01]}  Nc6 {[%clk 0:02:51]} 7. Nb3 {[%clk 0:03:01]}  c4 {[%clk 0:02:49]} 8. Nbd2 {[%clk 0:03:02]}  b5 {[%clk 0:02:46]} 9. Be2 {[%clk 0:03:02]}  Qb6 {[%clk 0:02:46]} 10. Nf1 {[%clk 0:03:03]}  f5 {[%clk 0:02:35]} 11. Ne3 {[%clk 0:03:03]}  Be7 {[%clk 0:02:25]} 12. O-O {[%clk 0:03:03]}  h6 {[%clk 0:02:24]} 13. g4 {[%clk 0:03:02]}  g6 {[%clk 0:02:23]} 14. Kh1 {[%clk 0:03:02]}  Nf8 {[%clk 0:02:23]} 15. Rg1 {[%clk 0:03:01]}  Bd7 {[%clk 0:02:21]} 16. gxf5 {[%clk 0:02:59]}  exf5 {[%clk 0:02:17]} 17. Nxd5 {[%clk 0:02:59]}  Qb7 {[%clk 0:02:15]} 18. Ne3 {[%clk 0:02:56]}  Ne6 {[%clk 0:02:05]} 19. d5 {[%clk 0:02:55]}  Nxf4 {[%clk 0:02:05]} 20. dxc6 {[%clk 0:02:53]}  Bxc6 {[%clk 0:02:06]} 21. Rf1 {[%clk 0:02:41]}  Rd8 {[%clk 0:01:55]} 22. Qe1 {[%clk 0:02:41]}  Bh4 {[%clk 0:01:53]} 23. Qxh4 {[%clk 0:02:37]}  Nxe2 {[%clk 0:01:53]} 24. Kg2 {[%clk 0:02:32]}  Nd4 {[%clk 0:01:46]} 25. Qf6 {[%clk 0:02:30]}  Bxf3+ {[%clk 0:01:39]} 26. Kf2 {[%clk 0:02:31]}  Bh5 {[%clk 0:01:25]} 27. Qxh8+ {[%clk 0:02:30]}  Kd7 {[%clk 0:01:25]} 28. Qg7+ {[%clk 0:02:27]}  Kc8 {[%clk 0:01:25]} 29. Qxb7+ {[%clk 0:02:27]}  Kxb7 {[%clk 0:01:26]} 30. c3 {[%clk 0:02:17]}  Nf3 {[%clk 0:01:23]} 31. a4 {[%clk 0:02:18]}  a6 {[%clk 0:01:21]} 32. axb5 {[%clk 0:02:18]}  axb5 {[%clk 0:01:22]} 33. e6 {[%clk 0:02:13]}  Ne5 {[%clk 0:01:20]} 34. e7 {[%clk 0:02:12]}  Re8 {[%clk 0:01:20]} 35. Nd5 {[%clk 0:02:11]}  Kc6 {[%clk 0:01:19]} 36. Nf6 {[%clk 0:02:11]}  Nd3+ {[%clk 0:01:18]} 37. Kg1 {[%clk 0:02:11]}  Rxe7 {[%clk 0:01:17]} 38. Nxh5 {[%clk 0:02:11]}  gxh5 {[%clk 0:01:18]} 39. Rxf5 {[%clk 0:02:11]}  Re1+ {[%clk 0:01:16]} 40. Rf1 {[%clk 0:02:12]}  Re4 {[%clk 0:01:12]} 41. Ra6+ {[%clk 0:02:12]}  Kb7 {[%clk 0:01:11]} 42. Rxh6 {[%clk 0:02:12]}  Rg4+ {[%clk 0:01:11]} 43. Kh1 {[%clk 0:02:13]}  b4 {[%clk 0:01:08]} 44. Rf7+ {[%clk 0:02:13]} 1-0


[Site "https://www.chess.com"]

[Event "Titled Tuesday Blitz May 03 Late 2022"]
[White "Jegorovas, Aleksandras"]
[Black "Melikyan, Gnel"]
[WhiteFideId "12801950"]
[BlackFideId "54109990"]
[WhiteElo "2247"]
[BlackElo "1772"]
[Result "1/2-1/2"]
[Round "04"]
[TimeControl "180+1"]
[Date "2022.05.03"]
[WhiteClock "0:00:16"]
[BlackClock "0:00:13"]

1. Nf3 {[%clk 0:03:00]}  b6 {[%clk 0:02:59]} 2. c4 {[%clk 0:02:59]}  Bb7 {[%clk 0:02:59]} 3. Nc3 {[%clk 0:02:59]}  Nf6 {[%clk 0:03:00]} 4. d4 {[%clk 0:02:58]}  e6 {[%clk 0:03:00]} 5. a3 {[%clk 0:02:56]}  Be7 {[%clk 0:03:00]} 6. d5 {[%clk 0:02:53]}  O-O {[%clk 0:03:00]} 7. e4 {[%clk 0:02:53]}  exd5 {[%clk 0:03:00]} 8. exd5 {[%clk 0:02:53]}  Re8 {[%clk 0:03:00]} 9. Be2 {[%clk 0:02:52]}  c6 {[%clk 0:03:00]} 10. O-O {[%clk 0:02:43]}  cxd5 {[%clk 0:02:59]} 11. cxd5 {[%clk 0:02:43]}  Na6 {[%clk 0:02:55]} 12. d6 {[%clk 0:02:38]}  Bf8 {[%clk 0:02:54]} 13. Bg5 {[%clk 0:02:36]}  h6 {[%clk 0:02:53]} 14. Bh4 {[%clk 0:02:34]}  Nc5 {[%clk 0:02:52]} 15. b4 {[%clk 0:02:18]}  Nce4 {[%clk 0:02:43]} 16. Nxe4 {[%clk 0:02:17]}  Rxe4 {[%clk 0:02:39]} 17. Bd3 {[%clk 0:02:06]}  Re6 {[%clk 0:02:36]} 18. Bg3 {[%clk 0:01:57]}  Bxd6 {[%clk 0:02:05]} 19. Bxd6 {[%clk 0:01:54]}  Bxf3 {[%clk 0:01:57]} 20. gxf3 {[%clk 0:01:48]}  Rxd6 {[%clk 0:01:55]} 21. Bh7+ {[%clk 0:01:48]}  Nxh7 {[%clk 0:01:45]} 22. Qxd6 {[%clk 0:01:48]}  Ng5 {[%clk 0:01:45]} 23. Kg2 {[%clk 0:01:39]}  Rc8 {[%clk 0:01:41]} 24. Rad1 {[%clk 0:01:38]}  Rc3 {[%clk 0:01:31]} 25. Qxd7 {[%clk 0:01:37]}  Qxd7 {[%clk 0:01:31]} 26. Rxd7 {[%clk 0:01:37]}  Rxa3 {[%clk 0:01:31]} 27. Rc1 {[%clk 0:01:27]}  a5 {[%clk 0:01:03]} 28. b5 {[%clk 0:01:21]}  Rb3 {[%clk 0:01:01]} 29. h4 {[%clk 0:01:14]}  Nxf3 {[%clk 0:01:00]} 30. h5 {[%clk 0:01:04]}  Nh4+ {[%clk 0:00:49]} 31. Kh2 {[%clk 0:00:56]}  Rxb5 {[%clk 0:00:48]} 32. Rc8+ {[%clk 0:00:55]}  Kh7 {[%clk 0:00:48]} 33. Rxf7 {[%clk 0:00:49]}  Rxh5 {[%clk 0:00:47]} 34. Rcc7 {[%clk 0:00:45]}  Nf5+ {[%clk 0:00:36]} 35. Kg2 {[%clk 0:00:44]}  Rg5+ {[%clk 0:00:35]} 36. Kf3 {[%clk 0:00:42]}  Nd4+ {[%clk 0:00:34]} 37. Ke4 {[%clk 0:00:40]}  Ne6 {[%clk 0:00:33]} 38. Rce7 {[%clk 0:00:38]}  Nc5+ {[%clk 0:00:30]} 39. Ke3 {[%clk 0:00:37]}  Rg6 {[%clk 0:00:29]} 40. f4 {[%clk 0:00:36]}  a4 {[%clk 0:00:27]} 41. f5 {[%clk 0:00:36]}  Rg5 {[%clk 0:00:18]} 42. f6 {[%clk 0:00:34]}  Kg6 {[%clk 0:00:15]} 43. fxg7 {[%clk 0:00:33]}  Kh7 {[%clk 0:00:15]} 44. Ra7 {[%clk 0:00:21]}  Ne6 {[%clk 0:00:15]} 45. Rxa4 {[%clk 0:00:17]}  Nxg7 {[%clk 0:00:14]} 46. Rb4 {[%clk 0:00:16]}  Rg6 {[%clk 0:00:14]} 47. Rb7 {[%clk 0:00:16]}  Re6+ {[%clk 0:00:14]} 48. Kf2 {[%clk 0:00:16]}  h5 {[%clk 0:00:13]} 49. R4xb6 {[%clk 0:00:16]} 1/2-1/2


[Site "https://www.chess.com"]

[Event "Titled Tuesday Blitz May 03 Late 2022"]
[White "Karttunen, Mika"]
[Black "Papasimakopoulos, Alexandros"]
[WhiteFideId "502081"]
[BlackFideId "4244125"]
[WhiteElo "2343"]
[BlackElo "2340"]
[Result "0-1"]
[Round "04"]
[TimeControl "180+1"]
[Date "2022.05.03"]
[WhiteClock "0:00:21"]
[BlackClock "0:00:50"]

1. c4 {[%clk 0:03:00]}  f5 {[%clk 0:02:55]} 2. d4 {[%clk 0:02:55]}  Nf6 {[%clk 0:02:54]} 3. Nc3 {[%clk 0:02:52]}  d6 {[%clk 0:02:53]} 4. Bg5 {[%clk 0:02:50]}  Nbd7 {[%clk 0:02:53]} 5. Qc2 {[%clk 0:02:42]}  g6 {[%clk 0:02:53]} 6. e4 {[%clk 0:02:39]}  fxe4 {[%clk 0:02:52]} 7. Nxe4 {[%clk 0:02:39]}  Bg7 {[%clk 0:02:52]} 8. O-O-O {[%clk 0:02:28]}  O-O {[%clk 0:02:47]} 9. Ng3 {[%clk 0:01:58]}  e5 {[%clk 0:02:41]} 10. d5 {[%clk 0:01:20]}  a5 {[%clk 0:02:37]} 11. f3 {[%clk 0:01:12]}  Nc5 {[%clk 0:02:36]} 12. N1e2 {[%clk 0:01:12]}  Qe8 {[%clk 0:02:18]} 13. Nc3 {[%clk 0:01:11]}  Bd7 {[%clk 0:02:18]} 14. h4 {[%clk 0:01:04]}  h6 {[%clk 0:02:14]} 15. Be3 {[%clk 0:01:04]}  b6 {[%clk 0:02:13]} 16. Bxc5 {[%clk 0:01:01]}  bxc5 {[%clk 0:02:09]} 17. Bd3 {[%clk 0:01:02]}  e4 {[%clk 0:02:06]} 18. Ngxe4 {[%clk 0:01:00]}  Nxe4 {[%clk 0:02:02]} 19. Bxe4 {[%clk 0:01:00]}  Bf5 {[%clk 0:02:02]} 20. Rde1 {[%clk 0:00:52]}  Bxe4 {[%clk 0:01:57]} 21. Rxe4 {[%clk 0:00:52]}  Qf7 {[%clk 0:01:52]} 22. Re6 {[%clk 0:00:51]}  Qf4+ {[%clk 0:01:47]} 23. Kb1 {[%clk 0:00:48]}  Qxc4 {[%clk 0:01:47]} 24. Rxg6 {[%clk 0:00:43]}  Rab8 {[%clk 0:01:47]} 25. b3 {[%clk 0:00:41]}  Kh8 {[%clk 0:01:46]} 26. Rxg7 {[%clk 0:00:37]}  Kxg7 {[%clk 0:01:44]} 27. Rd1 {[%clk 0:00:34]}  a4 {[%clk 0:01:35]} 28. Qb2 {[%clk 0:00:34]}  axb3 {[%clk 0:01:24]} 29. Ne4+ {[%clk 0:00:30]}  Kg8 {[%clk 0:01:18]} 30. a3 {[%clk 0:00:30]}  Ra8 {[%clk 0:00:59]} 31. Rc1 {[%clk 0:00:27]}  Qd3+ {[%clk 0:00:57]} 32. Ka1 {[%clk 0:00:27]}  Qxd5 {[%clk 0:00:52]} 33. Nf6+ {[%clk 0:00:23]}  Rxf6 {[%clk 0:00:52]} 34. Qxf6 {[%clk 0:00:24]}  Rxa3+ {[%clk 0:00:50]} 35. Kb1 {[%clk 0:00:21]}  Qd3+ {[%clk 0:00:49]} 36. Kb2 {[%clk 0:00:21]}  Ra2# {[%clk 0:00:50]} 0-1


[Site "https://www.chess.com"]

[Event "Titled Tuesday Blitz May 03 Late 2022"]
[White "Kim, Sergey"]
[Black "Abdyzhapar, Asylbek"]
[WhiteFideId "13700570"]
[BlackFideId "13800337"]
[WhiteElo "2534"]
[BlackElo "2331"]
[Result "0-1"]
[Round "04"]
[TimeControl "180+1"]
[Date "2022.05.03"]
[WhiteClock "0:00:03"]
[BlackClock "0:00:35"]

1. d4 {[%clk 0:03:00]}  Nf6 {[%clk 0:02:59]} 2. c4 {[%clk 0:03:00]}  g6 {[%clk 0:02:58]} 3. Nc3 {[%clk 0:03:00]}  Bg7 {[%clk 0:02:58]} 4. e4 {[%clk 0:03:00]}  d6 {[%clk 0:02:59]} 5. Nge2 {[%clk 0:03:00]}  O-O {[%clk 0:02:57]} 6. Ng3 {[%clk 0:03:00]}  Nbd7 {[%clk 0:02:57]} 7. Be2 {[%clk 0:03:01]}  e5 {[%clk 0:02:57]} 8. d5 {[%clk 0:03:00]}  a5 {[%clk 0:02:57]} 9. O-O {[%clk 0:03:00]}  h5 {[%clk 0:02:56]} 10. Bg5 {[%clk 0:02:59]}  Nc5 {[%clk 0:02:56]} 11. f3 {[%clk 0:02:51]}  Bd7 {[%clk 0:02:55]} 12. Qd2 {[%clk 0:02:50]}  Qe8 {[%clk 0:02:55]} 13. Rae1 {[%clk 0:02:47]}  Nh7 {[%clk 0:02:54]} 14. Bh6 {[%clk 0:02:47]}  h4 {[%clk 0:02:54]} 15. Nh1 {[%clk 0:02:46]}  Bxh6 {[%clk 0:02:50]} 16. Qxh6 {[%clk 0:02:45]}  Qe7 {[%clk 0:02:50]} 17. g3 {[%clk 0:02:33]}  Ng5 {[%clk 0:02:30]} 18. Nf2 {[%clk 0:02:24]}  Bh3 {[%clk 0:02:08]} 19. Nxh3 {[%clk 0:02:12]}  Nxh3+ {[%clk 0:02:08]} 20. Kg2 {[%clk 0:02:13]}  Qg5 {[%clk 0:02:05]} 21. Qxg5 {[%clk 0:02:09]}  Nxg5 {[%clk 0:02:05]} 22. gxh4 {[%clk 0:02:05]}  Nh7 {[%clk 0:02:04]} 23. f4 {[%clk 0:01:59]}  exf4 {[%clk 0:02:04]} 24. Rxf4 {[%clk 0:01:58]}  Rae8 {[%clk 0:02:04]} 25. Ref1 {[%clk 0:01:57]}  Kg7 {[%clk 0:02:04]} 26. Kg3 {[%clk 0:01:47]}  Re7 {[%clk 0:02:00]} 27. R1f3 {[%clk 0:01:27]}  Rfe8 {[%clk 0:01:57]} 28. b3 {[%clk 0:01:26]}  f6 {[%clk 0:01:50]} 29. Bd3 {[%clk 0:01:25]}  Nd7 {[%clk 0:01:44]} 30. Bc2 {[%clk 0:01:21]}  Ne5 {[%clk 0:01:43]} 31. Rf2 {[%clk 0:01:20]}  Nd7 {[%clk 0:01:27]} 32. Nb5 {[%clk 0:01:19]}  Nc5 {[%clk 0:01:26]} 33. Nd4 {[%clk 0:01:19]}  Re5 {[%clk 0:01:16]} 34. Kg2 {[%clk 0:01:12]}  R8e7 {[%clk 0:01:00]} 35. Nf3 {[%clk 0:00:57]}  Rh5 {[%clk 0:00:58]} 36. Rg4 {[%clk 0:00:52]}  Kh6 {[%clk 0:00:50]} 37. e5 {[%clk 0:00:46]}  f5 {[%clk 0:00:50]} 38. Rg5 {[%clk 0:00:36]}  dxe5 {[%clk 0:00:46]} 39. Rxh5+ {[%clk 0:00:32]}  Kxh5 {[%clk 0:00:46]} 40. Re2 {[%clk 0:00:28]}  e4 {[%clk 0:00:46]} 41. Nd4 {[%clk 0:00:28]}  Kxh4 {[%clk 0:00:46]} 42. a3 {[%clk 0:00:25]}  Ng5 {[%clk 0:00:44]} 43. b4 {[%clk 0:00:25]}  axb4 {[%clk 0:00:44]} 44. axb4 {[%clk 0:00:25]}  Na6 {[%clk 0:00:44]} 45. b5 {[%clk 0:00:20]}  Nc5 {[%clk 0:00:44]} 46. Re1 {[%clk 0:00:12]}  f4 {[%clk 0:00:44]} 47. Kf2 {[%clk 0:00:09]}  Nh3+ {[%clk 0:00:43]} 48. Kg2 {[%clk 0:00:09]}  f3+ {[%clk 0:00:43]} 49. Kf1 {[%clk 0:00:07]}  e3 {[%clk 0:00:42]} 50. Nxf3+ {[%clk 0:00:05]}  Kg4 {[%clk 0:00:42]} 51. Nd4 {[%clk 0:00:05]}  Nf4 {[%clk 0:00:39]} 52. Bd1+ {[%clk 0:00:04]}  Kh3 {[%clk 0:00:39]} 53. Bf3 {[%clk 0:00:03]}  Ncd3 {[%clk 0:00:35]} 0-1


[Site "https://www.chess.com"]

[Event "Titled Tuesday Blitz May 03 Late 2022"]
[White "Kujawski, Adam"]
[Black "Mirza, Diana"]
[WhiteFideId "1100920"]
[BlackFideId "2503999"]
[WhiteElo "2053"]
[BlackElo "1813"]
[Result "1-0"]
[Round "04"]
[TimeControl "180+1"]
[Date "2022.05.03"]
[WhiteClock "0:01:23"]
[BlackClock "0:00:31"]

1. e4 {[%clk 0:03:00]}  e5 {[%clk 0:02:54]} 2. Nf3 {[%clk 0:03:00]}  d6 {[%clk 0:02:53]} 3. d4 {[%clk 0:03:00]}  exd4 {[%clk 0:02:52]} 4. Nxd4 {[%clk 0:03:01]}  Nf6 {[%clk 0:02:51]} 5. Nc3 {[%clk 0:03:01]}  g6 {[%clk 0:02:52]} 6. g3 {[%clk 0:03:00]}  Bg7 {[%clk 0:02:52]} 7. Bg2 {[%clk 0:02:59]}  O-O {[%clk 0:02:49]} 8. O-O {[%clk 0:03:00]}  Nc6 {[%clk 0:02:46]} 9. Nde2 {[%clk 0:02:59]}  Re8 {[%clk 0:02:43]} 10. Rb1 {[%clk 0:02:57]}  Bg4 {[%clk 0:02:42]} 11. h3 {[%clk 0:02:56]}  Bxe2 {[%clk 0:02:40]} 12. Qxe2 {[%clk 0:02:57]}  Nd4 {[%clk 0:02:40]} 13. Qd1 {[%clk 0:02:56]}  Nd7 {[%clk 0:02:31]} 14. Be3 {[%clk 0:02:54]}  c5 {[%clk 0:02:27]} 15. Nd5 {[%clk 0:02:34]}  Nb6 {[%clk 0:02:24]} 16. Nxb6 {[%clk 0:02:29]}  axb6 {[%clk 0:02:25]} 17. c3 {[%clk 0:02:29]}  Nb5 {[%clk 0:02:13]} 18. a3 {[%clk 0:02:21]}  Nxa3 {[%clk 0:01:50]} 19. bxa3 {[%clk 0:02:18]}  Rxa3 {[%clk 0:01:51]} 20. c4 {[%clk 0:02:14]}  Qa8 {[%clk 0:01:36]} 21. Qxd6 {[%clk 0:02:02]}  Be5 {[%clk 0:01:24]} 22. Qxb6 {[%clk 0:01:49]}  Bxg3 {[%clk 0:01:16]} 23. Qxb7 {[%clk 0:01:46]}  Bd6 {[%clk 0:00:46]} 24. Qxa8 {[%clk 0:01:37]}  Rexa8 {[%clk 0:00:47]} 25. e5 {[%clk 0:01:35]}  Rd8 {[%clk 0:00:34]} 26. exd6 {[%clk 0:01:33]}  Rc3 {[%clk 0:00:32]} 27. Rbd1 {[%clk 0:01:30]}  Rxc4 {[%clk 0:00:31]} 28. Bg5 {[%clk 0:01:23]} 1-0


[Site "https://www.chess.com"]

[Event "Titled Tuesday Blitz May 03 Late 2022"]
[White "Lashkin, Jegor"]
[Black "Kozin, Yuri"]
[WhiteFideId "13907808"]
[BlackFideId "4129920"]
[WhiteElo "2368"]
[BlackElo "2564"]
[Result "1-0"]
[Round "04"]
[TimeControl "180+1"]
[Date "2022.05.03"]
[WhiteClock "0:01:56"]
[BlackClock "0:00:04"]

1. Nf3 {[%clk 0:03:00]}  c5 {[%clk 0:02:59]} 2. b3 {[%clk 0:03:01]}  Nf6 {[%clk 0:02:59]} 3. Bb2 {[%clk 0:03:01]}  e6 {[%clk 0:02:59]} 4. g3 {[%clk 0:03:02]}  Be7 {[%clk 0:02:58]} 5. Bg2 {[%clk 0:03:03]}  O-O {[%clk 0:02:59]} 6. O-O {[%clk 0:03:04]}  a6 {[%clk 0:02:59]} 7. d4 {[%clk 0:03:04]}  cxd4 {[%clk 0:02:59]} 8. Nxd4 {[%clk 0:03:04]}  d6 {[%clk 0:02:59]} 9. c4 {[%clk 0:03:04]}  Qc7 {[%clk 0:02:59]} 10. Nc3 {[%clk 0:03:04]}  Nbd7 {[%clk 0:03:00]} 11. Rc1 {[%clk 0:03:05]}  Ne5 {[%clk 0:03:01]} 12. e3 {[%clk 0:03:05]}  Bd7 {[%clk 0:03:00]} 13. Qe2 {[%clk 0:03:06]}  Rac8 {[%clk 0:03:00]} 14. Rfd1 {[%clk 0:03:06]}  Qb8 {[%clk 0:03:00]} 15. e4 {[%clk 0:03:06]}  b5 {[%clk 0:02:58]} 16. cxb5 {[%clk 0:03:06]}  axb5 {[%clk 0:02:58]} 17. Ndxb5 {[%clk 0:03:07]}  Rfe8 {[%clk 0:02:38]} 18. a4 {[%clk 0:03:04]}  Bc6 {[%clk 0:02:37]} 19. Ba3 {[%clk 0:03:03]}  Rcd8 {[%clk 0:01:53]} 20. h3 {[%clk 0:03:03]}  Ba8 {[%clk 0:01:53]} 21. Qe3 {[%clk 0:02:59]}  d5 {[%clk 0:01:42]} 22. Bxe7 {[%clk 0:02:58]}  Rxe7 {[%clk 0:01:42]} 23. exd5 {[%clk 0:02:59]}  exd5 {[%clk 0:01:40]} 24. Qf4 {[%clk 0:02:55]}  Red7 {[%clk 0:01:27]} 25. Nd4 {[%clk 0:02:49]}  Ne4 {[%clk 0:01:19]} 26. Ncb5 {[%clk 0:02:41]}  h6 {[%clk 0:01:03]} 27. h4 {[%clk 0:02:40]}  Nf6 {[%clk 0:00:44]} 28. Bh3 {[%clk 0:02:39]}  Re7 {[%clk 0:00:40]} 29. Bf1 {[%clk 0:02:23]}  Rde8 {[%clk 0:00:38]} 30. Nf5 {[%clk 0:02:21]}  Rd7 {[%clk 0:00:20]} 31. Bg2 {[%clk 0:02:20]}  Kh7 {[%clk 0:00:17]} 32. Nxh6 {[%clk 0:02:17]}  Ng6 {[%clk 0:00:14]} 33. Qxb8 {[%clk 0:02:16]}  Rxb8 {[%clk 0:00:15]} 34. Nf5 {[%clk 0:02:16]}  Ne5 {[%clk 0:00:12]} 35. Nfd4 {[%clk 0:02:11]}  Ne4 {[%clk 0:00:09]} 36. Rc2 {[%clk 0:02:09]}  g6 {[%clk 0:00:08]} 37. Nf3 {[%clk 0:02:05]}  Ng4 {[%clk 0:00:07]} 38. Ne1 {[%clk 0:01:59]}  Re8 {[%clk 0:00:06]} 39. Nd3 {[%clk 0:01:58]}  f5 {[%clk 0:00:03]} 40. Rdc1 {[%clk 0:01:58]}  d4 {[%clk 0:00:03]} 41. Rc7 {[%clk 0:01:57]}  Ree7 {[%clk 0:00:04]} 42. Rxd7 {[%clk 0:01:56]}  Rxd7 {[%clk 0:00:05]} 43. Rc7 {[%clk 0:01:55]}  Rxc7 {[%clk 0:00:05]} 44. Nxc7 {[%clk 0:01:56]}  Bc6 {[%clk 0:00:06]} 45. Ne6 {[%clk 0:01:56]}  Bd5 {[%clk 0:00:04]} 46. Nxd4 {[%clk 0:01:56]} 1-0


[Site "https://www.chess.com"]

[Event "Titled Tuesday Blitz May 03 Late 2022"]
[White "Maksimovic, Bojan"]
[Black "Guz, Ari"]
[WhiteFideId "14408120"]
[BlackFideId "2825759"]
[WhiteElo "2448"]
[BlackElo "1913"]
[Result "0-1"]
[Round "04"]
[TimeControl "180+1"]
[Date "2022.05.03"]
[WhiteClock "0:00:01"]
[BlackClock "0:00:19"]

1. e4 {[%clk 0:03:00]}  c5 {[%clk 0:02:58]} 2. Nf3 {[%clk 0:03:00]}  e6 {[%clk 0:02:59]} 3. c3 {[%clk 0:02:59]}  d5 {[%clk 0:02:59]} 4. exd5 {[%clk 0:03:00]}  exd5 {[%clk 0:02:59]} 5. d4 {[%clk 0:03:00]}  Nc6 {[%clk 0:02:57]} 6. Be3 {[%clk 0:02:58]}  cxd4 {[%clk 0:02:57]} 7. Nxd4 {[%clk 0:02:58]}  Nf6 {[%clk 0:02:57]} 8. Be2 {[%clk 0:02:55]}  Bd6 {[%clk 0:02:56]} 9. O-O {[%clk 0:02:55]}  O-O {[%clk 0:02:56]} 10. Nd2 {[%clk 0:02:52]}  Re8 {[%clk 0:02:52]} 11. h3 {[%clk 0:02:50]}  Bd7 {[%clk 0:02:44]} 12. Re1 {[%clk 0:02:31]}  h6 {[%clk 0:02:39]} 13. Bf1 {[%clk 0:02:26]}  Rc8 {[%clk 0:02:29]} 14. Qb3 {[%clk 0:02:16]}  Na5 {[%clk 0:02:17]} 15. Qc2 {[%clk 0:02:15]}  a6 {[%clk 0:02:11]} 16. Rad1 {[%clk 0:02:08]}  Nc6 {[%clk 0:02:07]} 17. Nxc6 {[%clk 0:02:06]}  bxc6 {[%clk 0:01:55]} 18. Nb3 {[%clk 0:02:01]}  Ne4 {[%clk 0:01:49]} 19. Bd3 {[%clk 0:01:43]}  a5 {[%clk 0:01:35]} 20. Bxe4 {[%clk 0:01:09]}  Rxe4 {[%clk 0:01:35]} 21. Qxe4 {[%clk 0:01:08]}  dxe4 {[%clk 0:01:34]} 22. Rxd6 {[%clk 0:01:08]}  Qe7 {[%clk 0:01:30]} 23. Red1 {[%clk 0:01:08]}  Be6 {[%clk 0:01:30]} 24. Nc5 {[%clk 0:01:06]}  Bf5 {[%clk 0:01:16]} 25. b3 {[%clk 0:01:02]}  Kh7 {[%clk 0:01:00]} 26. c4 {[%clk 0:01:00]}  Qe5 {[%clk 0:00:55]} 27. Na4 {[%clk 0:00:45]}  Be6 {[%clk 0:00:41]} 28. R6d2 {[%clk 0:00:44]}  f5 {[%clk 0:00:36]} 29. Bd4 {[%clk 0:00:24]}  Qb8 {[%clk 0:00:32]} 30. Nc5 {[%clk 0:00:23]}  Re8 {[%clk 0:00:29]} 31. Na6 {[%clk 0:00:16]}  Qf4 {[%clk 0:00:27]} 32. Nc5 {[%clk 0:00:13]}  Qg5 {[%clk 0:00:23]} 33. Kf1 {[%clk 0:00:08]}  f4 {[%clk 0:00:23]} 34. Nxe4 {[%clk 0:00:08]}  Qg6 {[%clk 0:00:22]} 35. f3 {[%clk 0:00:05]}  Bf5 {[%clk 0:00:22]} 36. Nc5 {[%clk 0:00:05]}  Qh5 {[%clk 0:00:20]} 37. Bf2 {[%clk 0:00:03]}  Bxh3 {[%clk 0:00:19]} 38. gxh3 {[%clk 0:00:03]}  Qxh3+ {[%clk 0:00:19]} 39. Kg1 {[%clk 0:00:04]}  Re5 {[%clk 0:00:19]} 40. Ne4 {[%clk 0:00:01]}  Rh5 {[%clk 0:00:19]} 0-1


[Site "https://www.chess.com"]

[Event "Titled Tuesday Blitz May 03 Late 2022"]
[White "Martinez Reyes, Pedro Ramon"]
[Black "Ibarra Jerez, Jose Carlos"]
[WhiteFideId "3901807"]
[BlackFideId "2226332"]
[WhiteElo "2410"]
[BlackElo "2626"]
[Result "1/2-1/2"]
[Round "04"]
[TimeControl "180+1"]
[Date "2022.05.03"]
[WhiteClock "0:00:13"]
[BlackClock "0:00:07"]

1. d4 {[%clk 0:03:00]}  d6 {[%clk 0:02:58]} 2. Nc3 {[%clk 0:03:00]}  Nf6 {[%clk 0:02:56]} 3. Bg5 {[%clk 0:03:00]}  Nbd7 {[%clk 0:02:53]} 4. Nf3 {[%clk 0:02:59]}  e5 {[%clk 0:02:54]} 5. e3 {[%clk 0:03:00]}  Be7 {[%clk 0:02:54]} 6. Be2 {[%clk 0:02:57]}  e4 {[%clk 0:02:48]} 7. Nd2 {[%clk 0:02:57]}  d5 {[%clk 0:02:48]} 8. O-O {[%clk 0:02:44]}  O-O {[%clk 0:02:48]} 9. Ncb1 {[%clk 0:02:40]}  c5 {[%clk 0:02:34]} 10. dxc5 {[%clk 0:02:19]}  Nxc5 {[%clk 0:02:34]} 11. Nc3 {[%clk 0:02:19]}  Be6 {[%clk 0:02:06]} 12. Nb3 {[%clk 0:02:19]}  Rc8 {[%clk 0:02:03]} 13. Nd4 {[%clk 0:02:14]}  h6 {[%clk 0:01:58]} 14. Bh4 {[%clk 0:02:13]}  Qb6 {[%clk 0:01:57]} 15. Rb1 {[%clk 0:02:08]}  Rfd8 {[%clk 0:01:56]} 16. Qd2 {[%clk 0:02:00]}  a6 {[%clk 0:01:47]} 17. Rfd1 {[%clk 0:01:59]}  g5 {[%clk 0:01:27]} 18. Bg3 {[%clk 0:01:59]}  h5 {[%clk 0:01:28]} 19. Be5 {[%clk 0:01:56]}  Ncd7 {[%clk 0:01:26]} 20. Nxe6 {[%clk 0:01:52]}  Qxe6 {[%clk 0:01:19]} 21. Bd4 {[%clk 0:01:53]}  b5 {[%clk 0:01:12]} 22. a4 {[%clk 0:01:47]}  b4 {[%clk 0:01:12]} 23. Na2 {[%clk 0:01:47]}  a5 {[%clk 0:01:12]} 24. c3 {[%clk 0:01:41]}  bxc3 {[%clk 0:00:57]} 25. Nxc3 {[%clk 0:01:41]}  Ne5 {[%clk 0:00:58]} 26. Rdc1 {[%clk 0:01:15]}  Bb4 {[%clk 0:00:57]} 27. Qd1 {[%clk 0:01:15]}  g4 {[%clk 0:00:55]} 28. Nb5 {[%clk 0:01:15]}  Nh7 {[%clk 0:00:35]} 29. Rxc8 {[%clk 0:01:06]}  Rxc8 {[%clk 0:00:35]} 30. Rc1 {[%clk 0:01:07]}  Nc6 {[%clk 0:00:26]} 31. Na7 {[%clk 0:00:53]}  Nxa7 {[%clk 0:00:24]} 32. Bxa7 {[%clk 0:00:54]}  Rxc1 {[%clk 0:00:20]} 33. Qxc1 {[%clk 0:00:55]}  Ng5 {[%clk 0:00:21]} 34. Qc7 {[%clk 0:00:50]}  Qg6 {[%clk 0:00:12]} 35. Qd8+ {[%clk 0:00:36]}  Kg7 {[%clk 0:00:13]} 36. Bd4+ {[%clk 0:00:36]}  f6 {[%clk 0:00:13]} 37. Qxd5 {[%clk 0:00:29]}  Nf3+ {[%clk 0:00:13]} 38. Kh1 {[%clk 0:00:29]}  Nxd4 {[%clk 0:00:12]} 39. Qxd4 {[%clk 0:00:28]}  Qf5 {[%clk 0:00:12]} 40. Kg1 {[%clk 0:00:28]}  Qc5 {[%clk 0:00:08]} 41. Qxc5 {[%clk 0:00:10]}  Bxc5 {[%clk 0:00:07]} 42. Bc4 {[%clk 0:00:10]}  f5 {[%clk 0:00:08]} 43. Kf1 {[%clk 0:00:10]}  h4 {[%clk 0:00:07]} 44. g3 {[%clk 0:00:09]}  h3 {[%clk 0:00:06]} 45. Ke2 {[%clk 0:00:10]}  Kf6 {[%clk 0:00:07]} 46. b3 {[%clk 0:00:10]}  Bb4 {[%clk 0:00:07]} 47. Bg8 {[%clk 0:00:10]}  Ke5 {[%clk 0:00:07]} 48. Bc4 {[%clk 0:00:11]}  Bc3 {[%clk 0:00:07]} 49. Bg8 {[%clk 0:00:11]}  Bb4 {[%clk 0:00:07]} 50. Bc4 {[%clk 0:00:12]}  Bd6 {[%clk 0:00:07]} 51. Bg8 {[%clk 0:00:12]}  Kf6 {[%clk 0:00:08]} 52. Bc4 {[%clk 0:00:13]}  Ke5 {[%clk 0:00:07]} 53. Bg8 {[%clk 0:00:13]}  Bb4 {[%clk 0:00:07]} 1/2-1/2


[Site "https://www.chess.com"]